fUSD/lending_fUSD_20250221
["ID","MTS","AMOUNT","RATE_DAILY","PERIOD"]
[354014027,1740180668657,-500.0,0.00011531,2]
[354014028,1740180668666,-500.0,0.00011531,2]
[354014029,1740180668675,-500.0,0.00011531,2]
[354014030,1740180668685,-500.0,0.00011531,2]
[354014031,1740180668694,-500.0,0.00011531,2]
[354014032,1740180668704,-500.0,0.00011531,2]
[354014033,1740180668714,-611.8,0.00011531,2]
[354014034,1740180668724,-500.0,0.00011531,2]
[354014035,1740180668734,-500.0,0.00011531,2]
[354014036,1740180668743,-500.0,0.00011531,2]
[354014037,1740180668752,-500.0,0.00011531,2]
[354014038,1740180668762,-500.0,0.00011531,2]
[354014039,1740180668771,-524.09606868,0.00011531,2]
[354014040,1740180668781,-381.01,0.00011531,2]
[354014041,1740180668790,-500.0,0.00011531,2]
[354014042,1740180668800,-500.0,0.00011531,2]
[354014043,1740180668809,-621.56077269,0.00011531,2]
[354014044,1740180668819,-579.0,0.00011531,2]
[354014045,1740180668829,-564.44,0.00011531,2]
[354014046,1740180668839,-500.0,0.00011531,2]
[354014047,1740180668848,-567.73,0.00011531,2]
[354014048,1740180668858,-500.0,0.00011531,2]
[354014049,1740180668867,-500.0,0.00011531,2]
[354014050,1740180668878,-525.85925798,0.00011531,2]
[354014051,1740180668887,-500.0,0.00011531,2]
[354014052,1740180668898,-500.0,0.00011531,2]
[354014053,1740180668908,-908.79,0.00011531,2]
[354014054,1740180668918,-500.0,0.00011531,2]
[354014055,1740180668928,-807.0,0.00011531,2]
[354014056,1740180668939,-1363.91,0.00011531,2]
[354014057,1740180668948,-500.0,0.00011531,2]
[354014058,1740180668958,-2037.76,0.00011531,2]
[354014059,1740180668967,-500.0,0.00011531,2]
[354014060,1740180668977,-537.92,0.00011531,2]
[354014061,1740180668986,-500.0,0.00011531,2]
[354014062,1740180668997,-620.22,0.00011531,2]
[354014063,1740180669007,-500.0,0.00011531,2]
[354014064,1740180669017,-500.0,0.00011531,2]
[354014065,1740180669026,-500.0,0.00011531,2]
[354014066,1740180669036,-500.0,0.00011531,2]
[354014067,1740180669046,-545.7,0.00011531,2]
[354014068,1740180669055,-652.61,0.00011531,2]
[354014069,1740180669065,-500.0,0.00011531,2]
[354014070,1740180669074,-1417.33,0.00011531,2]
[354014071,1740180669084,-500.0,0.00011531,2]
[354014072,1740180669093,-232.97,0.00011531,2]
[354014073,1740180669102,-500.0,0.00011531,2]
[354014074,1740180669112,-3499.92,0.00011531,2]
[354014075,1740180669121,-500.0,0.00011531,2]
[354014076,1740180669131,-431.01,0.00011531,2]
[354014077,1740180669140,-500.0,0.00011531,2]
[354014078,1740180669149,-500.0,0.00011531,2]
[354014079,1740180669159,-820.61,0.00011531,2]
[354014080,1740180669169,-500.0,0.00011531,2]
[354014081,1740180669179,-500.0,0.00011531,2]
[354014082,1740180669188,-738.7,0.00011531,2]
[354014083,1740180669199,-500.0,0.00011531,2]
[354014084,1740180669209,-500.0,0.00011531,2]
[354014085,1740180669220,-500.0,0.00011531,2]
[354014086,1740180669231,-500.0,0.00011531,2]
[354014087,1740180669240,-500.0,0.00011531,2]
[354014088,1740180669250,-500.0,0.00011531,2]
[354014089,1740180669260,-500.0,0.00011531,2]
[354014090,1740180669270,-500.0,0.00011531,2]
[354014091,1740180669279,-500.0,0.00011531,2]
[354014092,1740180669289,-500.0,0.00011531,2]
[354014093,1740180669300,-500.0,0.00011531,2]
[354014094,1740180669310,-500.0,0.00011531,2]
[354014095,1740180669320,-500.0,0.00011531,2]
[354014096,1740180669330,-500.0,0.00011531,2]
[354014097,1740180669339,-500.0,0.00011531,2]
[354014098,1740180669349,-500.0,0.00011531,2]
[354014099,1740180669358,-500.0,0.00011531,2]
[354014100,1740180669367,-1652.98,0.00011531,2]
[354014101,1740180669377,-500.0,0.00011531,2]
[354014102,1740180669386,-1014.71,0.00011531,2]
[354014103,1740180669396,-500.0,0.00011531,2]
[354014104,1740180669406,-1571.16,0.00011531,2]
[354014105,1740180669415,-605.21,0.00011531,2]
[354014106,1740180669425,-582.44,0.00011531,2]
[354014107,1740180669434,-500.0,0.00011531,2]
[354014108,1740180669444,-1000.0,0.00011531,2]
[354014109,1740180669454,-500.0,0.00011531,2]
[354014110,1740180669463,-809.41,0.00011531,2]
[354014111,1740180669473,-500.0,0.00011531,2]
[354014112,1740180669483,-500.0,0.00011531,2]
[354014113,1740180669494,-500.0,0.00011531,2]
[354014114,1740180669504,-500.0,0.00011531,2]
[354014115,1740180669515,-500.0,0.00011531,2]
[354014116,1740180669524,-500.0,0.00011531,2]
[354014117,1740180669534,-817.73,0.00011531,2]
[354014118,1740180669544,-500.0,0.00011531,2]
[354014119,1740180669553,-500.0,0.00011531,2]
[354014120,1740180669563,-813.29,0.00011531,2]
[354014121,1740180669572,-500.0,0.00011531,2]
[354014122,1740180669582,-500.0,0.00011531,2]
[354014123,1740180669592,-332.6955711,0.00011531,2]
[354014124,1740180669601,-500.0,0.00011531,2]
[354014125,1740180669611,-598.74,0.00011531,2]
[354014126,1740180669780,-500.0,0.00011531,2]
[354014127,1740180669790,-500.0,0.00011531,2]
[354014128,1740180669800,-500.0,0.00011531,2]
[354014129,1740180669809,-304.40216404,0.00011531,2]
[354014130,1740180669820,-544.58,0.00011531,2]
[354014131,1740180669830,-500.0,0.00011531,2]
[354014132,1740180669841,-500.0,0.00011531,2]
[354014133,1740180669851,-604.85,0.00011531,2]
[354014134,1740180669861,-500.0,0.00011531,2]
[354014135,1740180669872,-500.0,0.00011531,2]
[354014136,1740180669883,-500.0,0.00011531,2]
[354014137,1740180669894,-500.0,0.00011531,2]
[354014138,1740180669904,-500.0,0.00011531,2]
[354014139,1740180669915,-763.11,0.00011531,2]
[354014140,1740180669926,-487.16588384,0.00011531,2]
[354014141,1740180669936,-500.0,0.00011531,2]
[354014142,1740180669946,-500.0,0.00011531,2]
[354014143,1740180669956,-180.04,0.00011531,2]
[354014144,1740180669966,-514.53,0.00011531,2]
[354014145,1740180669975,-523.21,0.00011531,2]
[354014146,1740180669985,-500.0,0.00011531,2]
[354014147,1740180669994,-599.10059188,0.00011532,2]
[354014148,1740180670004,-500.0,0.00011532,2]
[354014149,1740180670014,-500.0,0.00011532,2]
[354014150,1740180670024,-500.0,0.00011532,2]
[354014151,1740180670034,-944.98,0.00011534,2]
[354014152,1740180670044,-500.0,0.00011534,2]
[354014153,1740180670054,-500.0,0.00011534,2]
[354014154,1740180670064,-602.43,0.00011534,2]
[354014155,1740180670074,-726.8,0.00011534,2]
[354014156,1740180670083,-500.0,0.00011534,2]
[354014157,1740180670092,-500.0,0.00011534,2]
[354014158,1740180670102,-500.0,0.00011534,2]
[354014159,1740180670113,-1601.17,0.00011534,2]
[354014160,1740180670123,-500.0,0.00011534,2]
[354014161,1740180670133,-561.26,0.00011534,2]
[354014162,1740180670143,-500.0,0.00011534,2]
[354014163,1740180670153,-686.26,0.00011534,2]
[354014164,1740180670162,-658.34,0.00011534,2]
[354014165,1740180670172,-1257.33,0.00011534,2]
[354014166,1740180670181,-786.53,0.00011534,2]
[354014167,1740180670191,-796.14,0.00011534,2]
[354014168,1740180670201,-671.55,0.00011534,2]
[354014169,1740180670211,-500.0,0.00011534,2]
[354014170,1740180670223,-578.65,0.00011534,2]
[354014171,1740180670232,-2368.54,0.00011534,2]
[354014172,1740180670242,-399.76,0.00011534,2]
[354014173,1740180670252,-619.4,0.00011534,2]
[354014174,1740180670262,-527.9,0.00011534,2]
[354014175,1740180670272,-500.0,0.00011613,2]
[354014176,1740180670282,-568.58,0.00011613,2]
[354014177,1740180670291,-504.37586616,0.00011613,2]
[354014178,1740180670301,-624.59859103,0.00011613,2]
[354014179,1740180670311,-333.46,0.00011613,2]
[354014180,1740180670320,-283.96,0.00011613,2]
[354014181,1740180670330,-500.0,0.00011613,2]
[354014182,1740180670340,-500.0,0.00011613,2]
[354014183,1740180670349,-500.0,0.00011613,2]
[354014184,1740180670359,-500.0,0.00011613,2]
[354014185,1740180670368,-500.0,0.00011613,2]
[354014186,1740180670378,-500.0,0.00011613,2]
[354014187,1740180670388,-343.32620645,0.00011613,2]
[354014188,1740180670397,-500.0,0.00011613,2]
[354014189,1740180670407,-500.0,0.00011613,2]
[354014190,1740180670417,-500.0,0.00011613,2]
[354014191,1740180670427,-523.47,0.00011613,2]
[354014192,1740180670437,-500.0,0.00011613,2]
[354014193,1740180670447,-500.0,0.00011613,2]
[354014194,1740180670456,-531.46,0.00011613,2]
[354014195,1740180670466,-500.0,0.00011613,2]
[354014196,1740180670475,-492.4,0.00011613,2]
[354014197,1740180670484,-500.0,0.00011613,2]
[354014198,1740180670494,-500.0,0.00011613,2]
[354014199,1740180670503,-500.0,0.00011613,2]
[354014200,1740180670513,-500.0,0.00011613,2]
[354014201,1740180670523,-500.0,0.00011613,2]
[354014202,1740180670532,-512.11389445,0.00011613,2]
[354014203,1740180670542,-500.0,0.00011613,2]
[354014204,1740180670552,-500.0,0.00011613,2]
[354014205,1740180670561,-500.0,0.00011613,2]
[354014206,1740180670571,-500.0,0.00011613,2]
[354014207,1740180670581,-500.0,0.00011613,2]
[354014208,1740180670590,-500.0,0.00011613,2]
[354014209,1740180670600,-500.0,0.00011613,2]
[354014210,1740180670609,-500.0,0.00011613,2]
[354014211,1740180670619,-500.0,0.00011613,2]
[354014212,1740180670630,-642.17694607,0.00011613,2]
[354014213,1740180670639,-567.73,0.00011613,2]
[354014214,1740180670649,-500.0,0.00011613,2]
[354014215,1740180670659,-500.0,0.00011613,2]
[354014216,1740180670668,-344.09,0.00011613,2]
[354014217,1740180670678,-908.79,0.00011613,2]
[354014218,1740180670688,-500.0,0.00011613,2]
[354014219,1740180670699,-807.0,0.00011613,2]
[354014220,1740180670709,-1363.91,0.00011613,2]
[354014221,1740180670718,-500.0,0.00011613,2]
[354014222,1740180670729,-2037.76,0.00011613,2]
[354014223,1740180670739,-500.0,0.00011613,2]
[354014224,1740180670750,-537.92,0.00011613,2]
[354014225,1740180670760,-500.0,0.00011613,2]
[354014226,1740180670770,-500.0,0.00011613,2]
[354014227,1740180670779,-620.22,0.00011613,2]
[354014228,1740180670789,-500.0,0.00011613,2]
[354014229,1740180670799,-500.0,0.00011613,2]
[354014230,1740180670809,-500.0,0.00011613,2]
[354014231,1740180670818,-500.0,0.00011613,2]
[354014232,1740180670829,-500.0,0.00011613,2]
[354014233,1740180670839,-500.0,0.00011613,2]
[354014234,1740180670848,-545.7,0.00011613,2]
[354014235,1740180670858,-652.61,0.00011613,2]
[354014236,1740180670868,-500.0,0.00011613,2]
[354014237,1740180670879,-1417.33,0.00011613,2]
[354014238,1740180670889,-212.32,0.00011613,2]
[354014239,1740180670899,-500.0,0.00011613,2]
[354014240,1740180670909,-500.0,0.00011613,2]
[354014241,1740180670919,-3499.92,0.00011613,2]
[354014242,1740180670930,-500.0,0.00011613,2]
[354014243,1740180670940,-500.0,0.00011613,2]
[354014244,1740180670950,-500.0,0.00011613,2]
[354014245,1740180670961,-500.0,0.00011613,2]
[354014246,1740180670973,-820.61,0.00011613,2]
[354014247,1740180670982,-500.0,0.00011613,2]
[354014248,1740180670993,-150.12,0.00011613,2]
[354014249,1740180671003,-738.7,0.00011613,2]
[354014250,1740180671013,-500.0,0.00011613,2]
[354014251,1740180671023,-500.0,0.00011613,2]
[354014252,1740180671033,-500.0,0.00011613,2]
[354014253,1740180671043,-960.49,0.00011613,2]
[354014254,1740180671053,-500.0,0.00011613,2]
[354014255,1740180671063,-500.0,0.00011613,2]
[354014256,1740180671073,-500.0,0.00011613,2]
[354014257,1740180671082,-500.0,0.00011613,2]
[354014258,1740180671092,-500.0,0.00011613,2]
[354014259,1740180671102,-500.0,0.00011613,2]
[354014260,1740180671112,-500.0,0.00011613,2]
[354014261,1740180671122,-500.0,0.00011613,2]
[354014262,1740180671132,-500.0,0.00011613,2]
[354014263,1740180671143,-500.0,0.00011613,2]
[354014264,1740180671153,-500.0,0.00011613,2]
[354014265,1740180671162,-500.0,0.00011613,2]
[354014266,1740180671172,-500.0,0.00011613,2]
[354014267,1740180671182,-1652.98,0.00011613,2]
[354014268,1740180671191,-500.0,0.00011613,2]
[354014269,1740180671204,-1014.71,0.00011613,2]
[354014270,1740180671214,-500.0,0.00011613,2]
[354014271,1740180671226,-1496.97,0.00011613,2]
[354014272,1740180671236,-1571.16,0.00011613,2]
[354014273,1740180671246,-605.21,0.00011613,2]
[354014274,1740180671256,-299.69,0.00011613,2]
[354014275,1740180671267,-500.0,0.00011613,2]
[354014276,1740180671277,-1000.0,0.00011613,2]
[354014277,1740180671287,-500.0,0.00011613,2]
[354014278,1740180671297,-809.41,0.00011613,2]
[354014279,1740180671308,-500.0,0.00011613,2]
[354014280,1740180671318,-500.0,0.00011613,2]
[354014281,1740180671327,-584.0,0.00011613,2]
[354014282,1740180671337,-500.0,0.00011613,2]
[354014283,1740180671347,-500.0,0.00011613,2]
[354014284,1740180671356,-500.0,0.00011613,2]
[354014285,1740180671365,-500.0,0.00011613,2]
[354014286,1740180671375,-817.73,0.00011613,2]
[354014287,1740180671384,-500.0,0.00011613,2]
[354014288,1740180671395,-813.29,0.00011613,2]
[354014289,1740180671404,-1318.76,0.00011613,2]
[354014290,1740180671414,-500.0,0.00011613,2]
[354014291,1740180671423,-500.0,0.00011613,2]
[354014292,1740180671434,-500.0,0.00011613,2]
[354014293,1740180671443,-598.74,0.00011613,2]
[354014294,1740180671455,-465.54,0.00011613,2]
[354014295,1740180671465,-500.0,0.00011613,2]
[354014296,1740180671475,-500.0,0.00011613,2]
[354014297,1740180671485,-527.01,0.00011613,2]
[354014298,1740180671494,-544.58,0.00011613,2]
[354014299,1740180671504,-500.0,0.00011613,2]
[354014300,1740180671514,-583.21,0.00011613,2]
[354014301,1740180671523,-604.85,0.00011613,2]
[354014302,1740180671532,-500.0,0.00011613,2]
[354014303,1740180671542,-500.0,0.00011613,2]
[354014304,1740180671552,-500.0,0.00011613,2]
[354014305,1740180671561,-500.0,0.00011613,2]
[354014306,1740180671571,-500.0,0.00011613,2]
[354014307,1740180671580,-512.58,0.00011613,2]
[354014308,1740180671590,-763.11,0.00011613,2]
[354014309,1740180671600,-500.0,0.00011613,2]
[354014310,1740180671609,-201.17,0.00011613,2]
[354014311,1740180671618,-180.42,0.00011613,2]
[354014312,1740180671629,-514.53,0.00011613,2]
[354014313,1740180671639,-523.21,0.00011613,2]
[354014314,1740180671649,-212.66,0.00011613,2]
[354014315,1740180671658,-522.86911945,0.00011615,2]
[354014316,1740180671668,-500.0,0.00011615,2]
[354014317,1740180671677,-500.0,0.00011615,2]
[354014318,1740180671687,-944.98,0.00011616,2]
[354014319,1740180671697,-500.0,0.00011616,2]
[354014320,1740180671709,-500.0,0.00011616,2]
[354014321,1740180671719,-602.43,0.00011616,2]
[354014322,1740180671729,-726.8,0.00011616,2]
[354014323,1740180671739,-500.0,0.00011616,2]
[354014324,1740180671748,-500.0,0.00011616,2]
[354014325,1740180671758,-500.0,0.00011616,2]
[354014326,1740180671768,-1601.17,0.00011616,2]
[354014327,1740180671779,-500.0,0.00011616,2]
[354014328,1740180671789,-561.26,0.00011616,2]
[354014329,1740180671799,-500.0,0.00011616,2]
[354014330,1740180671810,-686.26,0.00011616,2]
[354014331,1740180671819,-658.34,0.00011616,2]
[354014332,1740180671829,-1257.33,0.00011616,2]
[354014333,1740180671839,-786.53,0.00011616,2]
[354014334,1740180671849,-796.14,0.00011616,2]
[354014335,1740180671859,-671.55,0.00011616,2]
[354014336,1740180671869,-500.0,0.00011616,2]
[354014337,1740180671881,-578.65,0.00011616,2]
[354014338,1740180671891,-2368.54,0.00011616,2]
[354014339,1740180671901,-619.4,0.00011616,2]
[354014340,1740180671911,-527.9,0.00011616,2]
[354014341,1740180671921,-500.0,0.00011695,2]
[354014342,1740180671931,-500.0,0.00011695,2]
[354014343,1740180671942,-500.0,0.00011695,2]
[354014344,1740180671953,-500.0,0.00011695,2]
[354014345,1740180671964,-500.0,0.00011695,2]
[354014346,1740180671974,-1415.49,0.00011695,2]
[354014347,1740180671984,-960.49,0.00011695,2]
[354014348,1740180671994,-1496.97,0.00011695,2]
[354014349,1740180672004,-584.0,0.00011695,2]
[354014350,1740180672014,-1318.76,0.00011695,2]
[354014351,1740180672024,-527.01,0.00011695,2]
[354014352,1740180672034,-500.0,0.00011695,2]
[354014353,1740180672043,-550.0,0.00011696,2]
[354014354,1740180672053,-158.66,0.00011696,2]
[354014355,1740180672063,-232.18,0.00011696,2]
[354014356,1740180672073,-500.0,0.00011696,2]
[354014357,1740180672083,-291.57,0.00011696,2]
[354014358,1740180672092,-500.0,0.00011696,2]
[354014359,1740180672102,-447.92,0.00011696,2]
[354014360,1740180672112,-405.18,0.00011696,2]
[354014361,1740180672122,-396.19,0.00011696,2]
[354014362,1740180672132,-199.88,0.00011696,2]
[354014363,1740180672142,-500.0,0.00011696,2]
[354014364,1740180672152,-531.46,0.00011696,2]
[354014365,1740180672162,-500.0,0.00011696,2]
[354014366,1740180672172,-500.0,0.00011696,2]
[354014367,1740180672182,-500.0,0.00011696,2]
[354014368,1740180672192,-500.0,0.00011696,2]
[354014369,1740180672205,-500.0,0.00011696,2]
[354014370,1740180672217,-161.97492689,0.00011696,2]
[354014371,1740180672230,-500.0,0.00011696,2]
[354014372,1740180672240,-185.46364944,0.00011696,2]
[354014373,1740180672251,-500.0,0.00011696,2]
[354014374,1740180672263,-500.0,0.00011696,2]
[354014375,1740180672274,-500.0,0.00011696,2]
[354014376,1740180672284,-500.0,0.00011696,2]
[354014377,1740180672295,-500.0,0.00011696,2]
[354014378,1740180672306,-567.73,0.00011696,2]
[354014379,1740180672571,-500.0,0.00011696,2]
[354014380,1740180672582,-500.0,0.00011696,2]
[354014381,1740180672591,-908.79,0.00011696,2]
[354014382,1740180672600,-500.0,0.00011696,2]
[354014383,1740180672610,-807.0,0.00011696,2]
[354014384,1740180672619,-1363.91,0.00011696,2]
[354014385,1740180672629,-185.11,0.00011696,2]
[354014386,1740180672638,-2037.76,0.00011696,2]
[354014387,1740180672648,-500.0,0.00011696,2]
[354014388,1740180672657,-537.92,0.00011696,2]
[354014389,1740180672666,-578.39,0.00011696,2]
[354014390,1740180672675,-620.22,0.00011696,2]
[354014391,1740180672685,-500.0,0.00011696,2]
[354014392,1740180672695,-500.0,0.00011696,2]
[354014393,1740180672705,-500.0,0.00011696,2]
[354014394,1740180672715,-500.0,0.00011696,2]
[354014395,1740180672725,-545.7,0.00011696,2]
[354014396,1740180672736,-652.61,0.00011696,2]
[354014397,1740180672746,-500.0,0.00011696,2]
[354014398,1740180672755,-1417.33,0.00011696,2]
[354014399,1740180672765,-500.0,0.00011696,2]
[354014400,1740180672774,-3499.92,0.00011696,2]
[354014401,1740180672784,-500.0,0.00011696,2]
[354014402,1740180672793,-323.92044096,0.00011696,2]
[354014403,1740180672803,-500.0,0.00011696,2]
[354014404,1740180672813,-820.61,0.00011696,2]
[354014405,1740180672823,-500.0,0.00011696,2]
[354014406,1740180672832,-738.7,0.00011696,2]
[354014407,1740180672842,-500.0,0.00011696,2]
[354014408,1740180672852,-500.0,0.00011696,2]
[354014409,1740180672862,-500.0,0.00011696,2]
[354014410,1740180672872,-500.0,0.00011696,2]
[354014411,1740180672883,-500.0,0.00011696,2]
[354014412,1740180672894,-500.0,0.00011696,2]
[354014413,1740180672904,-500.0,0.00011696,2]
[354014414,1740180672914,-500.0,0.00011696,2]
[354014415,1740180672924,-373.92,0.00011696,2]
[354014416,1740180672934,-500.0,0.00011696,2]
[354014417,1740180672944,-500.0,0.00011696,2]
[354014418,1740180672956,-500.0,0.00011696,2]
[354014419,1740180672966,-500.0,0.00011696,2]
[354014420,1740180672976,-1652.98,0.00011696,2]
[354014421,1740180672986,-500.0,0.00011696,2]
[354014422,1740180672996,-1014.71,0.00011696,2]
[354014423,1740180673007,-500.0,0.00011696,2]
[354014424,1740180673018,-1571.16,0.00011696,2]
[354014425,1740180673028,-605.21,0.00011696,2]
[354014426,1740180673039,-372.37892812,0.00011696,2]
[354014427,1740180673049,-1000.0,0.00011696,2]
[354014428,1740180673058,-513.55,0.00011696,2]
[354014429,1740180673068,-809.41,0.00011696,2]
[354014430,1740180673078,-500.0,0.00011696,2]
[354014431,1740180673088,-619.98209595,0.00011696,2]
[354014432,1740180673099,-500.0,0.00011696,2]
[354014433,1740180673109,-531.52,0.00011696,2]
[354014434,1740180673119,-500.0,0.00011696,2]
[354014435,1740180673128,-174.62418954,0.00011696,2]
[354014436,1740180673139,-817.73,0.00011696,2]
[354014437,1740180673149,-500.0,0.00011696,2]
[354014438,1740180673159,-813.29,0.00011696,2]
[354014439,1740180673169,-500.0,0.00011696,2]
[354014440,1740180673179,-500.0,0.00011696,2]
[354014441,1740180673189,-500.0,0.00011696,2]
[354014442,1740180673201,-598.74,0.00011696,2]
[354014443,1740180673212,-500.0,0.00011696,2]
[354014444,1740180673224,-530.37955088,0.00011696,2]
[354014445,1740180673236,-544.58,0.00011696,2]
[354014446,1740180673246,-500.0,0.00011696,2]
[354014447,1740180673256,-604.85,0.00011696,2]
[354014448,1740180673266,-500.0,0.00011696,2]
[354014449,1740180673277,-483.44,0.00011696,2]
[354014450,1740180673287,-500.0,0.00011696,2]
[354014451,1740180673297,-163.87717537,0.00011696,2]
[354014452,1740180673307,-763.11,0.00011696,2]
[354014453,1740180673317,-648.09,0.00011696,2]
[354014454,1740180673327,-514.53,0.00011696,2]
[354014455,1740180673338,-523.21,0.00011696,2]
[354014456,1740180673349,-500.0,0.00011697,2]
[354014457,1740180673360,-500.0,0.00011697,2]
[354014458,1740180673370,-944.98,0.00011698,2]
[354014459,1740180673379,-500.0,0.00011698,2]
[354014460,1740180673389,-500.0,0.00011698,2]
[354014461,1740180673399,-602.43,0.00011698,2]
[354014462,1740180673409,-726.8,0.00011698,2]
[354014463,1740180673420,-199.95,0.00011698,2]
[354014464,1740180673431,-500.0,0.00011698,2]
[354014465,1740180673441,-500.0,0.00011698,2]
[354014466,1740180673453,-1601.17,0.00011698,2]
[354014467,1740180673465,-500.0,0.00011698,2]
[354014468,1740180673476,-561.26,0.00011698,2]
[354014469,1740180673487,-500.0,0.00011698,2]
[354014470,1740180673499,-686.26,0.00011698,2]
[354014471,1740180673510,-658.34,0.00011698,2]
[354014472,1740180673521,-1257.33,0.00011698,2]
[354014473,1740180673530,-786.53,0.00011698,2]
[354014474,1740180673540,-796.14,0.00011698,2]
[354014475,1740180673551,-671.55,0.00011698,2]
[354014476,1740180673562,-578.65,0.00011698,2]
[354014477,1740180673573,-2368.54,0.00011698,2]
[354014478,1740180673584,-619.4,0.00011698,2]
[354014479,1740180673595,-527.9,0.00011698,2]
[354014480,1740180673605,-500.0,0.00011777,2]
[354014481,1740180673616,-500.0,0.00011777,2]
[354014482,1740180673627,-500.0,0.00011777,2]
[354014483,1740180673637,-500.0,0.00011777,2]
[354014484,1740180673647,-500.0,0.00011777,2]
[354014485,1740180673658,-960.49,0.00011777,2]
[354014486,1740180673669,-1496.97,0.00011777,2]
[354014487,1740180673679,-584.0,0.00011777,2]
[354014488,1740180673689,-1318.76,0.00011777,2]
[354014489,1740180673700,-527.01,0.00011777,2]
[354014490,1740180673710,-500.0,0.00011777,2]
[354014491,1740180673720,-500.0,0.00011778,2]
[354014492,1740180673730,-365.89,0.00011778,2]
[354014493,1740180673740,-500.0,0.00011778,2]
[354014494,1740180673750,-531.46,0.00011778,2]
[354014495,1740180673760,-500.0,0.00011778,2]
[354014496,1740180673770,-500.0,0.00011778,2]
[354014497,1740180673780,-500.0,0.00011778,2]
[354014498,1740180673790,-500.0,0.00011778,2]
[354014499,1740180673800,-500.0,0.00011778,2]
[354014500,1740180673809,-500.0,0.00011778,2]
[354014501,1740180673819,-500.0,0.00011778,2]
[354014502,1740180673828,-500.0,0.00011778,2]
[354014503,1740180673838,-500.0,0.00011778,2]
[354014504,1740180673848,-421.25740134,0.00011778,2]
[354014505,1740180673857,-567.73,0.00011778,2]
[354014506,1740180673866,-500.0,0.00011778,2]
[354014507,1740180673877,-500.0,0.00011778,2]
[354014508,1740180673887,-908.79,0.00011778,2]
[354014509,1740180673897,-500.0,0.00011778,2]
[354014510,1740180673907,-807.0,0.00011778,2]
[354014511,1740180673917,-1363.91,0.00011778,2]
[354014512,1740180673926,-2037.76,0.00011778,2]
[354014513,1740180673936,-500.0,0.00011778,2]
[354014514,1740180673945,-537.92,0.00011778,2]
[354014515,1740180673956,-620.22,0.00011778,2]
[354014516,1740180673965,-500.0,0.00011778,2]
[354014517,1740180673975,-500.0,0.00011778,2]
[354014518,1740180673984,-500.0,0.00011778,2]
[354014519,1740180673994,-500.0,0.00011778,2]
[354014520,1740180674003,-545.7,0.00011778,2]
[354014521,1740180674012,-652.61,0.00011778,2]
[354014522,1740180674021,-500.0,0.00011778,2]
[354014523,1740180674031,-1417.33,0.00011778,2]
[354014524,1740180674041,-500.0,0.00011778,2]
[354014525,1740180674052,-3499.92,0.00011778,2]
[354014526,1740180674062,-500.0,0.00011778,2]